[Event "*** Qualifier 4: Titled Tuesday 3|2 Blitz"]
[Site "Chess.com"]
[Date "2017.04.25"]
[Round "7"]
[White "Oneofmyturns"]
[Black "Goala"]
[Result "1-0"]
[WhiteElo "2509"]
[BlackElo "2340"]
[TimeControl "180+2"]
[EndTime "14:34:23 PDT"]
[Termination "Oneofmyturns won by resignation"]

1. d4 {[%clk 0:03:02]} 1... e6 {[%clk 0:03:00.7]} 2. c4 {[%clk 0:03:03.1]} 2...
Nf6 {[%clk 0:03:02.3]} 3. Nc3 {[%clk 0:03:03.7]} 3... c5 {[%clk 0:03:03.8]} 4.
d5 {[%clk 0:03:04.5]} 4... exd5 {[%clk 0:03:05.7]} 5. cxd5 {[%clk 0:03:06.3]}
5... d6 {[%clk 0:03:07.3]} 6. Nf3 {[%clk 0:03:07.8]} 6... g6 {[%clk 0:03:08.5]}
7. Bf4 {[%clk 0:03:09.3]} 7... a6 {[%clk 0:03:09.2]} 8. a4 {[%clk 0:03:09.6]}
8... Bg7 {[%clk 0:03:09.7]} 9. h3 {[%clk 0:03:11.1]} 9... O-O {[%clk 0:03:08.6]}
10. e3 {[%clk 0:03:12.5]} 10... Qe7 {[%clk 0:03:09.9]} 11. Be2 {[%clk
0:03:13.4]} 11... Nbd7 {[%clk 0:03:07.2]} 12. O-O {[%clk 0:03:13.5]} 12... Ne8
{[%clk 0:02:45.4]} 13. Re1 {[%clk 0:03:08.2]} 13... Ne5 {[%clk 0:02:41.1]} 14.
Nd2 {[%clk 0:03:08.8]} 14... f5 {[%clk 0:02:37.9]} 15. Qb3 {[%clk 0:03:09.2]}
15... Nf6 {[%clk 0:02:22.5]} 16. Bh2 {[%clk 0:02:59.5]} 16... Bd7 {[%clk
0:02:14.5]} 17. Qb6 {[%clk 0:02:59.5]} 17... Rfd8 {[%clk 0:01:02.9]} 18. Rab1
{[%clk 0:03:00.2]} 18... Be8 {[%clk 0:01:02.4]} 19. Bf1 {[%clk 0:02:34.6]} 19...
Bf7 {[%clk 0:00:57.7]} 20. Qb3 {[%clk 0:01:33.9]} 20... Rac8 {[%clk 0:00:52.4]}
21. f4 {[%clk 0:01:29.6]} 21... c4 {[%clk 0:00:41.7]} 22. Nxc4 {[%clk 0:01:25]}
22... Nxc4 {[%clk 0:00:41.3]} 23. Bxc4 {[%clk 0:01:25.3]} 23... Ne4 {[%clk
0:00:36]} 24. Nxe4 {[%clk 0:01:00]} 24... Qxe4 {[%clk 0:00:37]} 25. Rbc1 {[%clk
0:00:56.6]} 25... b5 {[%clk 0:00:26.3]} 26. axb5 {[%clk 0:00:54.5]} 26... axb5
{[%clk 0:00:27.5]} 27. Bf1 {[%clk 0:00:30.4]} 27... Qxd5 {[%clk 0:00:21.7]} 28.
Qxb5 {[%clk 0:00:21.7]} 28... Bxb2 {[%clk 0:00:19.5]} 29. Qxd5 {[%clk
0:00:20.5]} 29... Bxd5 {[%clk 0:00:19.4]} 30. Rxc8 {[%clk 0:00:22.4]} 30... Rxc8
{[%clk 0:00:20.7]} 31. Rd1 {[%clk 0:00:24.3]} 31... Be4 {[%clk 0:00:09.3]} 32.
Bg3 {[%clk 0:00:19.3]} 32... d5 {[%clk 0:00:08.5]} 33. Bf2 {[%clk 0:00:20.5]}
33... Kf7 {[%clk 0:00:07.9]} 34. Be2 {[%clk 0:00:16.9]} 34... Rc2 {[%clk
0:00:06.2]} 35. Bf3 {[%clk 0:00:18.2]} 35... Ke6 {[%clk 0:00:04]} 36. h4 {[%clk
0:00:14.4]} 36... Rc7 {[%clk 0:00:04.3]} 37. h5 {[%clk 0:00:15.3]} 37... Rc1
{[%clk 0:00:04.1]} 38. Rxc1 {[%clk 0:00:14.3]} 38... Bxc1 {[%clk 0:00:06]} 39.
hxg6 {[%clk 0:00:13.7]} 39... hxg6 {[%clk 0:00:07.9]} 40. Be2 {[%clk 0:00:14.9]}
40... Bb2 {[%clk 0:00:08.3]} 41. Bb5 {[%clk 0:00:15.7]} 41... Bc1 {[%clk
0:00:09.4]} 42. Be8 {[%clk 0:00:16.7]} 42... Kf6 {[%clk 0:00:10.6]} 43. Bh4+
{[%clk 0:00:17.1]} 43... Kg7 {[%clk 0:00:11.7]} 44. Kf2 {[%clk 0:00:18.5]} 44...
d4 {[%clk 0:00:12.3]} 45. exd4 {[%clk 0:00:17.8]} 45... Bxf4 {[%clk 0:00:13.7]}
46. Be7 {[%clk 0:00:18.4]} 46... Bc1 {[%clk 0:00:12.7]} 47. Bd6 {[%clk
0:00:19.2]} 47... g5 {[%clk 0:00:12]} 48. Be5+ {[%clk 0:00:20]} 48... Kf8 {[%clk
0:00:13.5]} 49. Bg6 {[%clk 0:00:20]} 49... g4 {[%clk 0:00:14.4]} 50. g3 {[%clk
0:00:20.6]} 50... Bb2 {[%clk 0:00:14.1]} 51. Ke2 {[%clk 0:00:21.6]} 51... Ke7
{[%clk 0:00:14.7]} 52. Kd2 {[%clk 0:00:21.3]} 52... Ke6 {[%clk 0:00:15.4]} 53.
Bh7 {[%clk 0:00:22.6]} 53... Ke7 {[%clk 0:00:14.5]} 54. Bg8 {[%clk 0:00:22.3]}
54... Kf8 {[%clk 0:00:15.2]} 55. Bc4 {[%clk 0:00:23.1]} 55... Ke7 {[%clk
0:00:16.3]} 56. Bb3 {[%clk 0:00:23.9]} 56... Kf8 {[%clk 0:00:16.4]} 57. Bc2
{[%clk 0:00:24.2]} 57... Bxc2 {[%clk 0:00:16.4]} 58. Kxc2 {[%clk 0:00:26.1]}
58... Ba3 {[%clk 0:00:16.4]} 59. Kb3 {[%clk 0:00:27.5]} 59... Bc1 {[%clk
0:00:16.6]} 60. Kc4 {[%clk 0:00:28.8]} 60... Ke7 {[%clk 0:00:17.2]} 61. Kd5
{[%clk 0:00:30.3]} 61... Be3 {[%clk 0:00:16.2]} 62. Kc6 {[%clk 0:00:31.1]} 62...
f4 {[%clk 0:00:12.6]} 63. d5 {[%clk 0:00:22.1]} 63... f3 {[%clk 0:00:11.1]} 64.
d6+ {[%clk 0:00:23.2]} 64... Kf7 {[%clk 0:00:11.9]} 65. d7 {[%clk 0:00:23.7]}
65... Bg5 {[%clk 0:00:12.9]} 66. Bd4 {[%clk 0:00:21.6]} 66... Bd8 {[%clk
0:00:13.4]} 67. Kb7 {[%clk 0:00:21.6]} 67... Ke6 {[%clk 0:00:11.3]} 68. Kc8
{[%clk 0:00:22.4]} 68... Bg5 {[%clk 0:00:11.5]} 69. Be3 {[%clk 0:00:19]} 69...
Bf6 {[%clk 0:00:11.6]} 70. d8=Q {[%clk 0:00:14.6]} 70... Bxd8 {[%clk 0:00:12.4]}
71. Kxd8 {[%clk 0:00:16.5]} 71... Kd5 {[%clk 0:00:13.6]} 72. Ke7 {[%clk
0:00:18.4]} 72... Ke4 {[%clk 0:00:14.9]} 73. Bb6 {[%clk 0:00:17.4]} 73... f2
{[%clk 0:00:03.6]} 74. Bxf2 {[%clk 0:00:17.4]} 74... Kf3 {[%clk 0:00:05.1]} 75.
Be1 {[%clk 0:00:18.9]} 75... Ke2 {[%clk 0:00:06.7]} 76. Bb4 {[%clk 0:00:20]}
76... Kf3 {[%clk 0:00:07.4]} 77. Bd6 {[%clk 0:00:21.9]} 1-0

[Event "*** Qualifier 4: Titled Tuesday 3|2 Blitz"]
[Site "Chess.com"]
[Date "2017.04.25"]
[Round "7"]
[White "Konavets"]
[Black "Zlatan56"]
[Result "1/2-1/2"]
[WhiteElo "2694"]
[BlackElo "2620"]
[TimeControl "180+2"]
[EndTime "14:34:46 PDT"]
[Termination "Game drawn by repetition"]

1. e4 {[%clk 0:03:02]} 1... e5 {[%clk 0:03:00.4]} 2. Nf3 {[%clk 0:03:01.6]} 2...
Nc6 {[%clk 0:03:01.7]} 3. Bc4 {[%clk 0:03:03.1]} 3... Nf6 {[%clk 0:03:02.4]} 4.
Ng5 {[%clk 0:03:04.3]} 4... d5 {[%clk 0:03:01.5]} 5. exd5 {[%clk 0:03:06.2]}
5... b5 {[%clk 0:03:02.4]} 6. Bf1 {[%clk 0:02:57.1]} 6... Nd4 {[%clk 0:02:59.9]}
7. c3 {[%clk 0:02:53.7]} 7... Nxd5 {[%clk 0:02:58.4]} 8. Ne4 {[%clk 0:02:49.1]}
8... Ne6 {[%clk 0:02:58.6]} 9. Bxb5+ {[%clk 0:02:48.9]} 9... Bd7 {[%clk
0:03:00.1]} 10. Qa4 {[%clk 0:02:43.8]} 10... f5 {[%clk 0:02:46.7]} 11. Ng3
{[%clk 0:02:43.1]} 11... g6 {[%clk 0:02:31.9]} 12. Bxd7+ {[%clk 0:02:42.7]}
12... Qxd7 {[%clk 0:02:31.3]} 13. Qxd7+ {[%clk 0:02:44.6]} 13... Kxd7 {[%clk
0:02:32.1]} 14. O-O {[%clk 0:02:46.5]} 14... e4 {[%clk 0:02:10.5]} 15. d3 {[%clk
0:02:38]} 15... exd3 {[%clk 0:02:10.3]} 16. Rd1 {[%clk 0:02:39.1]} 16... Kc6
{[%clk 0:02:03]} 17. Rxd3 {[%clk 0:02:38.5]} 17... Bc5 {[%clk 0:01:53.5]} 18. b4
{[%clk 0:02:38.7]} 18... Ndf4 {[%clk 0:01:40.6]} 19. Rf3 {[%clk 0:02:31.5]}
19... Rad8 {[%clk 0:01:28.4]} 20. Bxf4 {[%clk 0:01:46.5]} 20... Rd1+ {[%clk
0:01:27.4]} 21. Nf1 {[%clk 0:01:47.6]} 21... Nxf4 {[%clk 0:01:27.8]} 22. Rxf4
{[%clk 0:01:49.5]} 22... Bb6 {[%clk 0:01:20.3]} 23. b5+ {[%clk 0:01:02.9]} 23...
Kb7 {[%clk 0:01:19.3]} 24. g3 {[%clk 0:01:04.5]} 24... Re8 {[%clk 0:01:16.3]}
25. Kg2 {[%clk 0:01:06]} 25... Re2 {[%clk 0:00:56.3]} 26. a4 {[%clk 0:01:02.5]}
26... a5 {[%clk 0:00:43]} 27. bxa6+ {[%clk 0:00:58.9]} 27... Kxa6 {[%clk
0:00:44.9]} 28. a5 {[%clk 0:01:00.5]} 28... Ba7 {[%clk 0:00:43.6]} 29. c4 {[%clk
0:00:42.6]} 29... Rb2 {[%clk 0:00:26.7]} 30. Nfd2 {[%clk 0:00:40]} 30... Rbxd2
{[%clk 0:00:22]} 31. Nxd2 {[%clk 0:00:37]} 31... Rxa1 {[%clk 0:00:23.5]} 32. Nf3
{[%clk 0:00:36.5]} 32... Ra2 {[%clk 0:00:18.7]} 33. Ne5 {[%clk 0:00:30.5]} 33...
Rxa5 {[%clk 0:00:16.6]} 34. Nc6 {[%clk 0:00:31.6]} 34... Rc5 {[%clk 0:00:17.2]}
35. Nb4+ {[%clk 0:00:29.4]} 35... Kb7 {[%clk 0:00:16.9]} 36. Rh4 {[%clk
0:00:29.3]} 36... h5 {[%clk 0:00:16.4]} 37. Nd3 {[%clk 0:00:30.4]} 37... Rc6
{[%clk 0:00:16.7]} 38. Rf4 {[%clk 0:00:30.4]} 38... Re6 {[%clk 0:00:16]} 39. h4
{[%clk 0:00:31.1]} 39... Kc6 {[%clk 0:00:14.9]} 40. Nb4+ {[%clk 0:00:32.1]}
40... Kd7 {[%clk 0:00:15.6]} 41. Rf3 {[%clk 0:00:31.7]} 41... Bc5 {[%clk
0:00:15.3]} 42. Nd3 {[%clk 0:00:32.3]} 42... Bd6 {[%clk 0:00:15.1]} 43. c5
{[%clk 0:00:33.8]} 43... Be7 {[%clk 0:00:14.2]} 44. Nf4 {[%clk 0:00:34.5]} 44...
Rc6 {[%clk 0:00:14.4]} 45. Rd3+ {[%clk 0:00:34.2]} 45... Ke8 {[%clk 0:00:15.3]}
46. Rd5 {[%clk 0:00:34]} 46... Kf7 {[%clk 0:00:15]} 47. Nd3 {[%clk 0:00:34.3]}
47... Ke6 {[%clk 0:00:14.4]} 48. Re5+ {[%clk 0:00:35.6]} 48... Kf6 {[%clk
0:00:13.9]} 49. Rd5 {[%clk 0:00:29.3]} 49... Ke6 {[%clk 0:00:14.9]} 50. Re5+
{[%clk 0:00:27.3]} 50... Kf6 {[%clk 0:00:15.7]} 51. Kf3 {[%clk 0:00:28.8]} 51...
Re6 {[%clk 0:00:15.2]} 52. Rd5 {[%clk 0:00:29.2]} 52... Rc6 {[%clk 0:00:12.1]}
53. Ke3 {[%clk 0:00:30.4]} 53... Re6+ {[%clk 0:00:12.3]} 54. Kd4 {[%clk
0:00:28.8]} 54... Re4+ {[%clk 0:00:12.9]} 55. Kc3 {[%clk 0:00:29.7]} 55... Ra4
{[%clk 0:00:12.6]} 56. Rd7 {[%clk 0:00:30.1]} 56... Ra7 {[%clk 0:00:11.3]} 57.
Kc4 {[%clk 0:00:25.9]} 57... Ke6 {[%clk 0:00:12.2]} 58. c6 {[%clk 0:00:27.5]}
58... Bd6 {[%clk 0:00:12.5]} 59. Nf4+ {[%clk 0:00:24]} 59... Bxf4 {[%clk
0:00:09.7]} 60. gxf4 {[%clk 0:00:25.9]} 60... Ra4+ {[%clk 0:00:10.7]} 61. Kb5
{[%clk 0:00:24.5]} 61... Rxf4 {[%clk 0:00:11.4]} 62. Rxc7 {[%clk 0:00:25.9]}
62... Rxf2 {[%clk 0:00:12]} 63. Rg7 {[%clk 0:00:27.1]} 63... Rb2+ {[%clk
0:00:12.5]} 64. Ka6 {[%clk 0:00:27.9]} 64... Kf6 {[%clk 0:00:12]} 65. c7 {[%clk
0:00:27.4]} 65... Rc2 {[%clk 0:00:12.8]} 66. Rd7 {[%clk 0:00:27.6]} 66... Ke5
{[%clk 0:00:12.8]} 67. Kb7 {[%clk 0:00:27.4]} 67... f4 {[%clk 0:00:13.7]} 68.
Rf7 {[%clk 0:00:26.4]} 68... Rb2+ {[%clk 0:00:11.4]} 69. Kc6 {[%clk 0:00:26.4]}
69... Rc2+ {[%clk 0:00:11.3]} 70. Kd7 {[%clk 0:00:27.7]} 70... Rd2+ {[%clk
0:00:12.3]} 71. Ke8 {[%clk 0:00:24.8]} 71... Rc2 {[%clk 0:00:13.1]} 72. Kd8
{[%clk 0:00:24.8]} 72... Ke4 {[%clk 0:00:12]} 73. Rf6 {[%clk 0:00:24.4]} 73...
f3 {[%clk 0:00:11.3]} 74. Kd7 {[%clk 0:00:25.5]} 74... Ke3 {[%clk 0:00:11.4]}
75. Re6+ {[%clk 0:00:24.9]} 75... Kd4 {[%clk 0:00:08.5]} 76. Rd6+ {[%clk
0:00:15.4]} 76... Ke3 {[%clk 0:00:08.4]} 77. Re6+ {[%clk 0:00:16.6]} 77... Kd4
{[%clk 0:00:09.4]} 78. Rxg6 {[%clk 0:00:15.9]} 78... f2 {[%clk 0:00:09]} 79. Rf6
{[%clk 0:00:17]} 79... Ke3 {[%clk 0:00:09.7]} 80. Re6+ {[%clk 0:00:15.8]} 80...
Kf3 {[%clk 0:00:09.4]} 81. Rf6+ {[%clk 0:00:17.2]} 81... Kg2 {[%clk 0:00:10.3]}
82. Rg6+ {[%clk 0:00:18.2]} 82... Kh2 {[%clk 0:00:10.5]} 83. Rf6 {[%clk
0:00:19.5]} 83... Kg2 {[%clk 0:00:10.8]} 84. Rg6+ {[%clk 0:00:17.2]} 84... Kh2
{[%clk 0:00:11.2]} 85. Rf6 {[%clk 0:00:17.5]} 85... Kg2 {[%clk 0:00:12.1]}
1/2-1/2

[Event "*** Qualifier 4: Titled Tuesday 3|2 Blitz"]
[Site "Chess.com"]
[Date "2017.04.25"]
[Round "7"]
[White "ruvat"]
[Black "arna"]
[Result "1-0"]
[WhiteElo "2233"]
[BlackElo "2069"]
[TimeControl "180+2"]
[EndTime "14:34:51 PDT"]
[Termination "ruvat won by resignation"]

1. d4 {[%clk 0:02:59.2]} 1... g6 {[%clk 0:02:58.1]} 2. c4 {[%clk 0:03:00.1]}
2... Bg7 {[%clk 0:02:52.7]} 3. Nf3 {[%clk 0:03:01]} 3... d6 {[%clk 0:02:52.9]}
4. g3 {[%clk 0:03:00.3]} 4... e6 {[%clk 0:02:50.2]} 5. Bg2 {[%clk 0:03:01.2]}
5... Ne7 {[%clk 0:02:51.5]} 6. O-O {[%clk 0:03:02]} 6... O-O {[%clk 0:02:53.4]}
7. Nc3 {[%clk 0:03:01.5]} 7... Nbc6 {[%clk 0:02:43.7]} 8. h3 {[%clk 0:02:46.5]}
8... Rb8 {[%clk 0:02:44.2]} 9. d5 {[%clk 0:02:37.7]} 9... Ne5 {[%clk 0:02:40.6]}
10. Nxe5 {[%clk 0:02:23.6]} 10... Bxe5 {[%clk 0:02:42.5]} 11. Bd2 {[%clk
0:02:16.9]} 11... Bg7 {[%clk 0:02:33.7]} 12. Qc2 {[%clk 0:02:14.8]} 12... a6
{[%clk 0:02:27.9]} 13. a4 {[%clk 0:02:08.4]} 13... a5 {[%clk 0:02:22.9]} 14.
Rad1 {[%clk 0:01:48.4]} 14... b6 {[%clk 0:02:21.9]} 15. e4 {[%clk 0:01:47.1]}
15... e5 {[%clk 0:02:21.7]} 16. Ne2 {[%clk 0:01:41.7]} 16... f5 {[%clk
0:02:21.9]} 17. exf5 {[%clk 0:01:27.4]} 17... gxf5 {[%clk 0:02:19.8]} 18. f4
{[%clk 0:01:25.9]} 18... e4 {[%clk 0:02:20.1]} 19. Bc3 {[%clk 0:01:15.6]} 19...
Bd7 {[%clk 0:02:16.6]} 20. Bxg7 {[%clk 0:01:14.6]} 20... Kxg7 {[%clk 0:02:17.8]}
21. Nd4 {[%clk 0:01:10.5]} 21... Kg8 {[%clk 0:02:09.1]} 22. Kh2 {[%clk
0:01:10.3]} 22... Qe8 {[%clk 0:02:06.4]} 23. Qc3 {[%clk 0:01:09.7]} 23... Bxa4
{[%clk 0:02:04.5]} 24. b3 {[%clk 0:01:09]} 24... Bd7 {[%clk 0:02:06.1]} 25. Nc2
{[%clk 0:01:09.9]} 25... Qg6 {[%clk 0:02:04.5]} 26. Ne3 {[%clk 0:01:07]} 26...
Qg7 {[%clk 0:02:02.5]} 27. Qxg7+ {[%clk 0:01:06.1]} 27... Kxg7 {[%clk
0:02:03.4]} 28. g4 {[%clk 0:01:07.3]} 28... Rbe8 {[%clk 0:01:52.3]} 29. Rf2
{[%clk 0:00:55.3]} 29... h5 {[%clk 0:01:44.4]} 30. g5 {[%clk 0:00:50.1]} 30...
Ng6 {[%clk 0:01:44]} 31. Kg3 {[%clk 0:00:44.6]} 31... h4+ {[%clk 0:01:40.3]} 32.
Kh2 {[%clk 0:00:45.5]} 32... Ra8 {[%clk 0:01:39.6]} 33. Ra1 {[%clk 0:00:40.2]}
33... Rfb8 {[%clk 0:01:36.4]} 34. Bf1 {[%clk 0:00:34.3]} 34... b5 {[%clk
0:01:34.6]} 35. cxb5 {[%clk 0:00:21.7]} 35... Ne7 {[%clk 0:01:33.4]} 36. Bc4
{[%clk 0:00:16.7]} 36... Bxb5 {[%clk 0:01:25.3]} 37. Rfa2 {[%clk 0:00:11.1]}
37... a4 {[%clk 0:01:16.8]} 38. bxa4 {[%clk 0:00:09.9]} 38... Bxc4 {[%clk
0:01:15.5]} 39. Nxc4 {[%clk 0:00:11]} 39... Nxd5 {[%clk 0:01:15.4]} 40. a5
{[%clk 0:00:12.3]} 40... Rb4 {[%clk 0:00:59.6]} 41. Rc2 {[%clk 0:00:09.2]} 41...
Nxf4 {[%clk 0:00:54.9]} 42. Ne3 {[%clk 0:00:09.8]} 42... Ra7 {[%clk 0:00:43.9]}
43. Nxf5+ {[%clk 0:00:09.4]} 43... Kg6 {[%clk 0:00:45.2]} 44. Nxh4+ {[%clk
0:00:09.1]} 44... Kxg5 {[%clk 0:00:46.3]} 45. Ng2 {[%clk 0:00:10]} 45... Nd3
{[%clk 0:00:40.1]} 46. Ne3 {[%clk 0:00:09.2]} 46... Nc5 {[%clk 0:00:37.1]} 47.
Nd5 {[%clk 0:00:09.6]} 47... Rb5 {[%clk 0:00:36.2]} 48. Rg2+ {[%clk 0:00:09.2]}
48... Kf5 {[%clk 0:00:35.6]} 49. Ne7+ {[%clk 0:00:10.1]} 49... Ke6 {[%clk
0:00:35.9]} 50. Nc6 {[%clk 0:00:11.1]} 50... Rbb7 {[%clk 0:00:24]} 51. Nd8+
{[%clk 0:00:11.4]} 51... Ke5 {[%clk 0:00:23.3]} 52. Nxb7 {[%clk 0:00:12.5]}
52... Nxb7 {[%clk 0:00:24.6]} 53. h4 {[%clk 0:00:11.9]} 53... Nc5 {[%clk
0:00:18.9]} 54. h5 {[%clk 0:00:11.6]} 54... c6 {[%clk 0:00:20.5]} 55. h6 {[%clk
0:00:10.5]} 55... Rh7 {[%clk 0:00:21.8]} 56. a6 {[%clk 0:00:11.8]} 56... Rxh6+
{[%clk 0:00:22.1]} 57. Kg1 {[%clk 0:00:11.7]} 57... Nxa6 {[%clk 0:00:18.3]} 58.
Rxa6 {[%clk 0:00:11.4]} 58... c5 {[%clk 0:00:14.8]} 59. Rd2 {[%clk 0:00:08.9]}
59... Rf6 {[%clk 0:00:09.5]} 60. Rc6 {[%clk 0:00:06.7]} 60... e3 {[%clk
0:00:04.4]} 61. Rd1 {[%clk 0:00:07.8]} 61... Re6 {[%clk 0:00:03.8]} 62. Kf1
{[%clk 0:00:06.7]} 62... d5 {[%clk 0:00:05]} 63. Rxe6+ {[%clk 0:00:05.5]} 63...
Kxe6 {[%clk 0:00:06.9]} 64. Ke2 {[%clk 0:00:06.4]} 64... d4 {[%clk 0:00:08.8]}
65. Kd3 {[%clk 0:00:07.5]} 65... Kd5 {[%clk 0:00:10.7]} 66. Rc1 {[%clk
0:00:07.4]} 66... Kd6 {[%clk 0:00:03.5]} 67. Kc4 {[%clk 0:00:06.6]} 67... Ke5
{[%clk 0:00:04.9]} 68. Kd3 {[%clk 0:00:06.7]} 68... Kd5 {[%clk 0:00:05.7]} 69.
Rc2 {[%clk 0:00:07.3]} 69... Kd6 {[%clk 0:00:05.8]} 70. Rh2 {[%clk 0:00:08]}
70... Kc6 {[%clk 0:00:04.5]} 71. Kc4 {[%clk 0:00:07.7]} 71... Kb6 {[%clk
0:00:05.3]} 72. Rb2+ {[%clk 0:00:05.7]} 72... Kc6 {[%clk 0:00:06.1]} 73. Rh2
{[%clk 0:00:05.5]} 73... Kb6 {[%clk 0:00:07.1]} 74. Rh6+ {[%clk 0:00:06.2]}
74... Ka5 {[%clk 0:00:07.9]} 75. Re6 {[%clk 0:00:04.8]} 75... d3 {[%clk
0:00:03.2]} 76. Kxd3 {[%clk 0:00:05.3]} 76... Kb4 {[%clk 0:00:03.7]} 77. Rxe3
{[%clk 0:00:06]} 77... Kb3 {[%clk 0:00:05.2]} 78. Kd2+ {[%clk 0:00:06.4]} 78...
Kb2 {[%clk 0:00:06.6]} 79. Re4 {[%clk 0:00:06.3]} 79... Kb3 {[%clk 0:00:07.4]}
80. Kc1 {[%clk 0:00:06.8]} 80... Kc3 {[%clk 0:00:08.1]} 81. Rh4 {[%clk
0:00:06.8]} 81... Kd3 {[%clk 0:00:08.7]} 82. Rh3+ {[%clk 0:00:07.3]} 82... Kd4
{[%clk 0:00:09.3]} 83. Kc2 {[%clk 0:00:08.4]} 1-0